fUST/lending_fUST_20240912
["ID","MTS","AMOUNT","RATE_DAILY","PERIOD"]
[337804381,1726126269841,-382.93434488,0.00017808,2]
[337804382,1726126269850,-729.56,0.00017808,2]
[337804383,1726126269860,-500.0,0.00017808,2]
[337804384,1726126269870,-610.29821625,0.00017808,2]
[337804385,1726126269879,-500.0,0.00017808,2]
[337804386,1726126269889,-500.0,0.00017808,2]
[337804387,1726126269898,-1516.84,0.00017808,2]
[337804388,1726126269907,-500.0,0.00017808,2]
[337804389,1726126269917,-506.41,0.00017808,2]
[337804390,1726126269927,-500.0,0.00017808,2]
[337804391,1726126269936,-500.0,0.00017808,2]
[337804392,1726126269946,-514.03,0.00017808,2]
[337804393,1726126269956,-500.0,0.00017808,2]
[337804394,1726126269966,-500.0,0.00017808,2]
[337804395,1726126269976,-527.65895879,0.00017808,2]
[337804396,1726126269985,-667.46,0.00017808,2]
[337804397,1726126269995,-500.0,0.00017808,2]
[337804398,1726126270004,-614.10587117,0.00017808,2]
[337804399,1726126270013,-500.0,0.00017808,2]
[337804400,1726126270022,-500.0,0.00017808,2]
[337804401,1726126270032,-500.0,0.00017808,2]
[337804402,1726126270041,-652.1,0.00017808,2]
[337804403,1726126270051,-7723.66,0.00017808,2]
[337804404,1726126270062,-521.98,0.00017808,2]
[337804405,1726126270071,-500.0,0.00017808,2]
[337804406,1726126270081,-610.96,0.00017808,2]
[337804407,1726126270091,-500.0,0.00017808,2]
[337804408,1726126270100,-787.76,0.00017808,2]
[337804409,1726126270111,-500.0,0.00017808,2]
[337804410,1726126270120,-500.0,0.00017808,2]
[337804411,1726126270130,-500.0,0.00017808,2]
[337804412,1726126270140,-1100.14,0.00017808,2]
[337804413,1726126270150,-500.0,0.00017808,2]
[337804414,1726126270159,-500.0,0.00017808,2]
[337804415,1726126270169,-605.65,0.00017808,2]
[337804416,1726126270179,-500.0,0.00017808,2]
[337804417,1726126270188,-500.0,0.00017808,2]
[337804418,1726126270197,-500.0,0.00017808,2]
[337804419,1726126270209,-863.88,0.00017808,2]
[337804420,1726126270219,-500.0,0.00017808,2]
[337804421,1726126270228,-500.0,0.00017808,2]
[337804422,1726126270238,-500.0,0.00017808,2]
[337804423,1726126270247,-500.0,0.00017808,2]
[337804424,1726126270257,-500.0,0.00017808,2]
[337804425,1726126270266,-500.0,0.00017808,2]
[337804426,1726126270276,-625.41,0.00017808,2]
[337804427,1726126270285,-443.35446639,0.00017808,2]
[337804428,1726126270294,-185.23242394,0.00017808,2]
[337804429,1726126270304,-515.61,0.00017808,2]
[337804430,1726126270315,-500.0,0.00017808,2]
[337804431,1726126270325,-567.51,0.00017808,2]
[337804432,1726126270334,-658.34,0.00017808,2]
[337804433,1726126270344,-500.0,0.00017808,2]
[337804434,1726126270354,-500.0,0.00017808,2]
[337804435,1726126270364,-1244.31,0.00017808,2]
[337804436,1726126270374,-500.0,0.00017808,2]
[337804437,1726126270383,-500.0,0.00017808,2]
[337804438,1726126270392,-617.93,0.00017808,2]
[337804439,1726126270402,-880.87,0.00017808,2]
[337804440,1726126270411,-500.0,0.00017808,2]
[337804441,1726126270421,-500.0,0.00017808,2]
[337804442,1726126270430,-500.0,0.00017808,2]
[337804443,1726126270440,-500.0,0.00017808,2]
[337804444,1726126270451,-7995.59,0.00017808,2]
[337804445,1726126270460,-500.0,0.00017808,2]
[337804446,1726126270469,-500.0,0.00017808,2]
[337804447,1726126270479,-730.56,0.00017808,2]
[337804448,1726126270489,-500.0,0.00017808,2]
[337804449,1726126270499,-643.36,0.00017808,2]
[337804450,1726126270509,-685.72,0.00017808,2]
[337804451,1726126270519,-891.8,0.00017808,2]
[337804452,1726126270528,-896.4,0.00017808,2]
[337804453,1726126270538,-500.0,0.00017808,2]
[337804454,1726126270547,-500.0,0.00017808,2]
[337804455,1726126270556,-415.88,0.00017808,2]
[337804456,1726126270568,-970.33,0.00017808,2]
[337804457,1726126270577,-498.65112495,0.00017808,2]
[337804458,1726126270587,-667.17,0.00017808,2]
[337804459,1726126270598,-500.0,0.00017808,2]
[337804460,1726126270607,-921.58,0.00017808,2]
[337804461,1726126270617,-500.0,0.00017808,2]
[337804462,1726126270627,-587.36,0.00017808,2]
[337804463,1726126270636,-837.0,0.00017808,2]
[337804464,1726126270646,-1038.03,0.00017808,2]
[337804465,1726126270656,-816.23,0.00017808,2]
[337804466,1726126270665,-815.49,0.00017808,2]
[337804467,1726126270675,-1205.74,0.00017808,2]
[337804468,1726126270684,-548.71,0.00017808,2]
[337804469,1726126270694,-500.0,0.00017808,2]
[337804470,1726126270704,-1099.99,0.00017808,2]
[337804471,1726126270713,-545.66,0.00017808,2]
[337804472,1726126270724,-616.91,0.00017808,2]
[337804473,1726126270734,-500.0,0.00017808,2]
[337804474,1726126270744,-500.0,0.00017808,2]
[337804475,1726126270755,-8490.67,0.00017808,2]
[337804476,1726126270764,-7192.56,0.00017808,2]
[337804477,1726126270774,-500.0,0.00017808,2]
[337804478,1726126270786,-2440.96,0.00017808,2]
[337804479,1726126270797,-500.0,0.00017808,2]
[337804480,1726126270807,-2090.39,0.00017808,2]
[337804481,1726126270819,-718.38,0.00017808,2]
[337804482,1726126270829,-1515.42,0.00017808,2]
[337804483,1726126270839,-527.55560483,0.00017808,2]
[337804484,1726126270849,-500.0,0.00017808,2]
[337804485,1726126270861,-500.0,0.00017808,2]
[337804486,1726126270872,-500.0,0.00017808,2]
[337804487,1726126270882,-6023.97,0.00017808,2]
[337804488,1726126270892,-1456.09,0.00017808,2]
[337804489,1726126270902,-833.83,0.00017808,2]
[337804490,1726126270915,-500.0,0.00017808,2]
[337804491,1726126270926,-1240.93,0.00017808,2]
[337804492,1726126270935,-1382.75,0.00017808,2]
[337804493,1726126270945,-591.45,0.00017808,2]
[337804494,1726126270954,-500.0,0.00017808,2]
[337804495,1726126270964,-726.49,0.00017808,2]
[337804496,1726126270974,-420.0,0.0001782,2]
[337804497,1726126270984,-245.7158267,0.00017842,2]
[337804498,1726126270994,-1000.0,0.00017842,2]
[337804499,1726126271119,-1000.0,0.00017842,2]
[337804500,1726126271140,-1000.0,0.00017842,2]
[337804501,1726126271152,-500.99178075,0.00017842,2]
[337804502,1726126271162,-1000.0,0.00017842,2]
[337804503,1726126271171,-1000.0,0.00017842,2]
[337804504,1726126271181,-1000.0,0.00017842,2]
[337804505,1726126271191,-1000.0,0.00017842,2]
[337804506,1726126271201,-1000.0,0.00017842,2]
[337804507,1726126271216,-150.112233,0.000179,2]
[337804508,1726126271226,-420.0,0.00017934,2]
[337804509,1726126271235,-5461.94764664,0.00017969,2]
[337804510,1726126271244,-150.112233,0.00018,2]
[337804511,1726126271254,-500.0,0.00018082,2]
[337804512,1726126271264,-500.0,0.00018082,2]
[337804513,1726126271273,-500.0,0.00018082,2]
[337804514,1726126271283,-500.0,0.00018082,2]
[337804515,1726126271293,-500.0,0.00018082,2]
[337804516,1726126271302,-500.0,0.00018082,2]
[337804517,1726126271313,-500.0,0.00018082,2]
[337804518,1726126271322,-500.0,0.00018082,2]
[337804519,1726126271332,-556.11,0.00018082,2]
[337804520,1726126271341,-500.0,0.00018082,2]
[337804521,1726126271351,-500.0,0.00018082,2]
[337804522,1726126271360,-572.83,0.00018082,2]
[337804523,1726126271370,-687.88,0.00018082,2]
[337804524,1726126271379,-500.0,0.00018082,2]
[337804525,1726126271390,-500.0,0.00018082,2]
[337804526,1726126271400,-500.0,0.00018082,2]
[337804527,1726126271409,-500.0,0.00018082,2]
[337804528,1726126271419,-543.0,0.00018082,2]
[337804529,1726126271428,-500.0,0.00018082,2]
[337804530,1726126271438,-500.0,0.00018082,2]
[337804531,1726126271447,-500.0,0.00018082,2]
[337804532,1726126271456,-500.0,0.00018082,2]
[337804533,1726126271466,-500.0,0.00018082,2]
[337804534,1726126271475,-195.7657892,0.00018082,2]
[337804535,1726126271485,-918.59,0.00018082,2]
[337804536,1726126271494,-500.0,0.00018082,2]
[337804537,1726126271503,-685.52,0.00018082,2]
[337804538,1726126271514,-500.0,0.00018082,2]
[337804539,1726126271523,-500.0,0.00018082,2]
[337804540,1726126271532,-500.0,0.00018082,2]
[337804541,1726126271541,-500.0,0.00018082,2]
[337804542,1726126271550,-546.95,0.00018082,2]
[337804543,1726126271559,-500.0,0.00018082,2]
[337804544,1726126271576,-500.0,0.00018082,2]
[337804545,1726126271585,-500.0,0.00018082,2]
[337804546,1726126271595,-500.0,0.00018082,2]
[337804547,1726126271604,-500.0,0.00018082,2]
[337804548,1726126271613,-690.13,0.00018082,2]
[337804549,1726126271623,-500.0,0.00018082,2]
[337804550,1726126271632,-500.0,0.00018082,2]
[337804551,1726126271641,-500.0,0.00018082,2]
[337804552,1726126271650,-500.0,0.00018082,2]
[337804553,1726126271660,-657.97,0.00018082,2]
[337804554,1726126271669,-1049.7,0.00018082,2]
[337804555,1726126271679,-500.0,0.00018082,2]
[337804556,1726126271688,-518.71,0.00018082,2]
[337804557,1726126271697,-304.10939998,0.00018082,2]
[337804558,1726126271706,-623.44,0.00018082,2]
[337804559,1726126271716,-500.0,0.00018082,2]
[337804560,1726126271725,-500.0,0.00018082,2]
[337804561,1726126271735,-500.0,0.00018082,2]
[337804562,1726126271745,-832.23,0.00018082,2]
[337804563,1726126271755,-997.48,0.00018082,2]
[337804564,1726126271764,-747.14,0.00018082,2]
[337804565,1726126271774,-500.0,0.00018082,2]
[337804566,1726126271783,-500.0,0.00018082,2]
[337804567,1726126271794,-500.0,0.00018082,2]
[337804568,1726126271803,-729.56,0.00018082,2]
[337804569,1726126271817,-500.0,0.00018082,2]
[337804570,1726126271827,-500.0,0.00018082,2]
[337804571,1726126271837,-1516.84,0.00018082,2]
[337804572,1726126271846,-236.49,0.00018082,2]
[337804573,1726126271856,-506.41,0.00018082,2]
[337804574,1726126271865,-500.0,0.00018082,2]
[337804575,1726126271876,-500.0,0.00018082,2]
[337804576,1726126271885,-514.03,0.00018082,2]
[337804577,1726126271895,-500.0,0.00018082,2]
[337804578,1726126271904,-325.43411415,0.00018082,2]
[337804579,1726126271914,-667.46,0.00018082,2]
[337804580,1726126271924,-500.0,0.00018082,2]
[337804581,1726126271933,-500.0,0.00018082,2]
[337804582,1726126271943,-500.0,0.00018082,2]
[337804583,1726126271953,-500.0,0.00018082,2]
[337804584,1726126271963,-652.1,0.00018082,2]
[337804585,1726126271972,-7723.66,0.00018082,2]
[337804586,1726126271982,-521.98,0.00018082,2]
[337804587,1726126271991,-500.0,0.00018082,2]
[337804588,1726126272001,-500.0,0.00018082,2]
[337804589,1726126272010,-787.76,0.00018082,2]
[337804590,1726126272020,-500.0,0.00018082,2]
[337804591,1726126272029,-500.0,0.00018082,2]
[337804592,1726126272038,-500.0,0.00018082,2]
[337804593,1726126272048,-1100.14,0.00018082,2]
[337804594,1726126272057,-500.0,0.00018082,2]
[337804595,1726126272070,-500.0,0.00018082,2]
[337804596,1726126272081,-605.65,0.00018082,2]
[337804597,1726126272091,-500.0,0.00018082,2]
[337804598,1726126272100,-500.0,0.00018082,2]
[337804599,1726126272110,-500.0,0.00018082,2]
[337804600,1726126272119,-863.88,0.00018082,2]
[337804601,1726126272129,-151.0,0.00018082,2]
[337804602,1726126272139,-500.0,0.00018082,2]
[337804603,1726126272148,-500.0,0.00018082,2]
[337804604,1726126272157,-500.0,0.00018082,2]
[337804605,1726126272166,-500.0,0.00018082,2]
[337804606,1726126272175,-495.146954,0.00018082,2]
[337804607,1726126272185,-500.0,0.00018082,2]
[337804608,1726126272194,-495.146954,0.00018082,2]
[337804609,1726126272205,-154.629794,0.00018082,2]
[337804610,1726126272216,-500.0,0.00018082,2]
[337804611,1726126272226,-625.41,0.00018082,2]
[337804612,1726126272235,-515.61,0.00018082,2]
[337804613,1726126272244,-500.0,0.00018082,2]
[337804614,1726126272254,-567.51,0.00018082,2]
[337804615,1726126272265,-658.34,0.00018082,2]
[337804616,1726126272275,-500.0,0.00018082,2]
[337804617,1726126272284,-500.0,0.00018082,2]
[337804618,1726126272294,-1244.31,0.00018082,2]
[337804619,1726126272304,-500.0,0.00018082,2]
[337804620,1726126272317,-500.0,0.00018082,2]
[337804621,1726126272327,-151.0,0.00018082,2]
[337804622,1726126272337,-617.93,0.00018082,2]
[337804623,1726126272347,-880.87,0.00018082,2]
[337804624,1726126272356,-500.0,0.00018082,2]
[337804625,1726126272366,-956.229416,0.00018082,2]
[337804626,1726126272376,-151.0,0.00018082,2]
[337804627,1726126272385,-500.0,0.00018082,2]
[337804628,1726126272395,-500.0,0.00018082,2]
[337804629,1726126272405,-500.0,0.00018082,2]
[337804630,1726126272416,-956.229416,0.00018082,2]
[337804631,1726126272426,-7995.59,0.00018082,2]
[337804632,1726126272436,-500.0,0.00018082,2]
[337804633,1726126272445,-500.0,0.00018082,2]
[337804634,1726126272455,-730.56,0.00018082,2]
[337804635,1726126272464,-500.0,0.00018082,2]
[337804636,1726126272476,-643.36,0.00018082,2]
[337804637,1726126272493,-685.72,0.00018082,2]
[337804638,1726126272509,-891.8,0.00018082,2]
[337804639,1726126272522,-151.0,0.00018082,2]
[337804640,1726126272537,-896.4,0.00018082,2]
[337804641,1726126272551,-376.306505,0.00018082,2]
[337804642,1726126272568,-500.0,0.00018082,2]
[337804643,1726126272583,-500.0,0.00018082,2]
[337804644,1726126272599,-376.306505,0.00018082,2]
[337804645,1726126272614,-222.608357,0.00018082,2]
[337804646,1726126272628,-970.33,0.00018082,2]
[337804647,1726126272641,-1437.401088,0.00018082,2]
[337804648,1726126272656,-667.17,0.00018082,2]
[337804649,1726126272670,-500.0,0.00018082,2]
[337804650,1726126272681,-1437.401088,0.00018082,2]
[337804651,1726126272694,-921.58,0.00018082,2]
[337804652,1726126272708,-500.0,0.00018082,2]
[337804653,1726126272722,-587.36,0.00018082,2]
[337804654,1726126272735,-837.0,0.00018082,2]
[337804655,1726126272751,-1038.03,0.00018082,2]
[337804656,1726126272767,-151.0,0.00018082,2]
[337804657,1726126272779,-816.23,0.00018082,2]
[337804658,1726126272791,-815.49,0.00018082,2]
[337804659,1726126272803,-1205.74,0.00018082,2]
[337804660,1726126272819,-187.900087,0.00018082,2]
[337804661,1726126272834,-151.0,0.00018082,2]
[337804662,1726126272844,-151.0,0.00018082,2]
[337804663,1726126272859,-151.0,0.00018082,2]
[337804664,1726126272874,-187.900087,0.00018082,2]
[337804665,1726126272886,-586.71816729,0.00018082,2]
[337804666,1726126272898,-151.0,0.00018082,2]
[337804667,1726126272918,-1099.99,0.00018082,2]
[337804668,1726126272931,-322.339873,0.00018082,2]
[337804669,1726126272943,-545.66,0.00018082,2]
[337804670,1726126272956,-383.078404,0.00018082,2]
[337804671,1726126272969,-322.339873,0.00018082,2]
[337804672,1726126272981,-616.91,0.00018082,2]
[337804673,1726126272994,-152.025076,0.00018082,2]
[337804674,1726126273006,-383.078404,0.00018082,2]
[337804675,1726126273019,-302.027356,0.00018082,2]
[337804676,1726126273031,-500.0,0.00018082,2]
[337804677,1726126273044,-204.27,0.00018082,2]
[337804678,1726126273056,-302.027356,0.00018082,2]
[337804679,1726126273069,-8490.67,0.00018082,2]
[337804680,1726126273081,-7192.56,0.00018082,2]
[337804681,1726126273094,-500.0,0.00018082,2]
[337804682,1726126273106,-2440.96,0.00018082,2]
[337804683,1726126273118,-151.0,0.00018082,2]
[337804684,1726126273131,-500.0,0.00018082,2]
[337804685,1726126273145,-2090.39,0.00018082,2]
[337804686,1726126273158,-718.38,0.00018082,2]
[337804687,1726126273173,-1515.42,0.00018082,2]
[337804688,1726126273186,-431.26435573,0.00018082,2]
[337804689,1726126273198,-500.0,0.00018082,2]
[337804690,1726126273214,-500.0,0.00018082,2]
[337804691,1726126273227,-6023.97,0.00018082,2]
[337804692,1726126273240,-1456.09,0.00018082,2]
[337804693,1726126273251,-151.27997,0.00018082,2]
[337804694,1726126273264,-833.83,0.00018082,2]
[337804695,1726126273277,-500.0,0.00018082,2]
[337804696,1726126273291,-1240.93,0.00018082,2]
[337804697,1726126273304,-1382.75,0.00018082,2]
[337804698,1726126273319,-591.45,0.00018082,2]
[337804699,1726126273331,-151.0,0.00018082,2]
[337804700,1726126273343,-500.0,0.00018082,2]
[337804701,1726126273356,-726.49,0.00018082,2]
[337804702,1726126273369,-150.112233,0.000182,2]
[337804703,1726126273382,-981.80191145,0.00018342,2]
[337804704,1726126273395,-1000.0,0.00018342,2]
[337804705,1726126273407,-500.0,0.00018356,2]
[337804706,1726126273420,-500.0,0.00018356,2]
[337804707,1726126273433,-383.83912227,0.00018356,2]
[337804708,1726126273445,-500.0,0.00018356,2]
[337804709,1726126273457,-500.0,0.00018356,2]
[337804710,1726126273469,-200.30385696,0.00018356,2]
[337804711,1726126273481,-500.0,0.00018356,2]
[337804712,1726126273492,-500.0,0.00018356,2]
[337804713,1726126273505,-556.11,0.00018356,2]
[337804714,1726126273517,-500.0,0.00018356,2]
[337804715,1726126273529,-153.36215224,0.00018356,2]
[337804716,1726126273541,-572.83,0.00018356,2]
[337804717,1726126273553,-687.88,0.00018356,2]
[337804718,1726126273566,-500.0,0.00018356,2]
[337804719,1726126273579,-500.0,0.00018356,2]
[337804720,1726126273591,-500.0,0.00018356,2]
[337804721,1726126273603,-186.70489734,0.00018356,2]
[337804722,1726126273616,-543.0,0.00018356,2]
[337804723,1726126273628,-500.0,0.00018356,2]
[337804724,1726126273640,-500.0,0.00018356,2]
[337804725,1726126273653,-500.0,0.00018356,2]
[337804726,1726126273664,-500.0,0.00018356,2]
[337804727,1726126273676,-500.0,0.00018356,2]
[337804728,1726126273689,-918.59,0.00018356,2]
[337804729,1726126273701,-500.0,0.00018356,2]
[337804730,1726126273711,-685.52,0.00018356,2]
[337804731,1726126273720,-500.0,0.00018356,2]
[337804732,1726126273731,-500.0,0.00018356,2]
[337804733,1726126273740,-500.0,0.00018356,2]
[337804734,1726126273751,-500.0,0.00018356,2]
[337804735,1726126273761,-546.95,0.00018356,2]
[337804736,1726126273771,-500.0,0.00018356,2]
[337804737,1726126273781,-500.0,0.00018356,2]
[337804738,1726126273790,-500.0,0.00018356,2]
[337804739,1726126273801,-500.0,0.00018356,2]
[337804740,1726126273812,-500.0,0.00018356,2]
[337804741,1726126273823,-690.13,0.00018356,2]
[337804742,1726126273833,-500.0,0.00018356,2]
[337804743,1726126273844,-500.0,0.00018356,2]
[337804744,1726126273854,-500.0,0.00018356,2]
[337804745,1726126273863,-500.0,0.00018356,2]
[337804746,1726126273874,-657.97,0.00018356,2]
[337804747,1726126273884,-1049.7,0.00018356,2]
[337804748,1726126273894,-500.0,0.00018356,2]
[337804749,1726126273904,-518.71,0.00018356,2]
[337804750,1726126273914,-623.44,0.00018356,2]
[337804751,1726126273924,-500.0,0.00018356,2]
[337804752,1726126273935,-500.0,0.00018356,2]
[337804753,1726126273945,-832.23,0.00018356,2]
[337804754,1726126273955,-997.48,0.00018356,2]
[337804755,1726126273965,-747.14,0.00018356,2]
[337804756,1726126273975,-500.0,0.00018356,2]
[337804757,1726126273985,-553.72,0.00018356,2]
[337804758,1726126273996,-500.0,0.00018356,2]
[337804759,1726126274006,-729.56,0.00018356,2]
[337804760,1726126274016,-500.0,0.00018356,2]
[337804761,1726126274026,-500.0,0.00018356,2]
[337804762,1726126274036,-1516.84,0.00018356,2]
[337804763,1726126274046,-506.41,0.00018356,2]
[337804764,1726126274056,-500.0,0.00018356,2]
[337804765,1726126274068,-500.0,0.00018356,2]
[337804766,1726126274078,-514.03,0.00018356,2]
[337804767,1726126274088,-500.0,0.00018356,2]
[337804768,1726126274098,-667.46,0.00018356,2]
[337804769,1726126274108,-508.36,0.00018356,2]
[337804770,1726126274118,-500.0,0.00018356,2]
[337804771,1726126274127,-254.73369728,0.00018356,2]
[337804772,1726126274137,-500.0,0.00018356,2]
[337804773,1726126274446,-652.1,0.00018356,2]
[337804774,1726126274466,-7723.66,0.00018356,2]
[337804775,1726126274483,-521.98,0.00018356,2]
[337804776,1726126274495,-500.0,0.00018356,2]
[337804777,1726126274506,-500.0,0.00018356,2]
[337804778,1726126274516,-787.76,0.00018356,2]
[337804779,1726126274527,-500.0,0.00018356,2]
[337804780,1726126274536,-500.0,0.00018356,2]
[337804781,1726126274546,-500.0,0.00018356,2]
[337804782,1726126274556,-1100.14,0.00018356,2]
[337804783,1726126274568,-500.0,0.00018356,2]
[337804784,1726126274578,-500.0,0.00018356,2]
[337804785,1726126274588,-605.65,0.00018356,2]
[337804786,1726126274598,-500.0,0.00018356,2]
[337804787,1726126274607,-500.0,0.00018356,2]
[337804788,1726126274617,-500.0,0.00018356,2]
[337804789,1726126274627,-863.88,0.00018356,2]
[337804790,1726126274636,-500.0,0.00018356,2]
[337804791,1726126274646,-361.18818233,0.00018356,2]
[337804792,1726126274655,-500.0,0.00018356,2]
[337804793,1726126274665,-500.0,0.00018356,2]
[337804794,1726126274674,-500.0,0.00018356,2]
[337804795,1726126274683,-649.00728006,0.00018356,2]
[337804796,1726126274693,-625.41,0.00018356,2]
[337804797,1726126274702,-515.61,0.00018356,2]
[337804798,1726126274712,-500.0,0.00018356,2]
[337804799,1726126274721,-567.51,0.00018356,2]
[337804800,1726126274731,-658.34,0.00018356,2]
[337804801,1726126274741,-500.0,0.00018356,2]
[337804802,1726126274751,-500.0,0.00018356,2]
[337804803,1726126274761,-1244.31,0.00018356,2]
[337804804,1726126274770,-500.0,0.00018356,2]
[337804805,1726126274781,-500.0,0.00018356,2]
[337804806,1726126274791,-617.93,0.00018356,2]
[337804807,1726126274801,-880.87,0.00018356,2]
[337804808,1726126274811,-210.29,0.00018356,2]
[337804809,1726126274832,-500.0,0.00018356,2]
[337804810,1726126274841,-500.0,0.00018356,2]
[337804811,1726126274851,-500.0,0.00018356,2]
[337804812,1726126274863,-7995.59,0.00018356,2]
[337804813,1726126274873,-500.0,0.00018356,2]
[337804814,1726126274883,-500.0,0.00018356,2]
[337804815,1726126274892,-730.56,0.00018356,2]
[337804816,1726126274903,-500.0,0.00018356,2]
[337804817,1726126274912,-643.36,0.00018356,2]
[337804818,1726126274922,-685.72,0.00018356,2]
[337804819,1726126274931,-891.8,0.00018356,2]
[337804820,1726126274941,-896.4,0.00018356,2]
[337804821,1726126274951,-304.37396017,0.00018356,2]
[337804822,1726126274960,-500.0,0.00018356,2]
[337804823,1726126274970,-970.33,0.00018356,2]
[337804824,1726126274980,-667.17,0.00018356,2]
[337804825,1726126274989,-500.0,0.00018356,2]
[337804826,1726126274999,-921.58,0.00018356,2]
[337804827,1726126275008,-500.0,0.00018356,2]
[337804828,1726126275018,-587.36,0.00018356,2]
[337804829,1726126275027,-837.0,0.00018356,2]
[337804830,1726126275037,-1038.03,0.00018356,2]
[337804831,1726126275047,-816.23,0.00018356,2]
[337804832,1726126275057,-815.49,0.00018356,2]
[337804833,1726126275068,-1205.74,0.00018356,2]
[337804834,1726126275078,-1099.99,0.00018356,2]
[337804835,1726126275088,-545.66,0.00018356,2]
[337804836,1726126275099,-616.91,0.00018356,2]
[337804837,1726126275111,-500.0,0.00018356,2]
[337804838,1726126275121,-8490.67,0.00018356,2]
[337804839,1726126275131,-7192.56,0.00018356,2]
[337804840,1726126275140,-500.0,0.00018356,2]
[337804841,1726126275151,-2440.96,0.00018356,2]
[337804842,1726126275162,-500.0,0.00018356,2]
[337804843,1726126275171,-2090.39,0.00018356,2]
[337804844,1726126275181,-718.38,0.00018356,2]
[337804845,1726126275190,-1515.42,0.00018356,2]
[337804846,1726126275199,-500.0,0.00018356,2]
[337804847,1726126275211,-500.0,0.00018356,2]
[337804848,1726126275221,-6023.97,0.00018356,2]
[337804849,1726126275231,-1456.09,0.00018356,2]
[337804850,1726126275242,-833.83,0.00018356,2]
[337804851,1726126275252,-189.3331021,0.00018356,2]
[337804852,1726126275262,-1240.93,0.00018356,2]
[337804853,1726126275273,-1382.75,0.00018356,2]
[337804854,1726126275284,-591.45,0.00018356,2]
[337804855,1726126275293,-500.0,0.00018356,2]
[337804856,1726126275304,-726.49,0.00018356,2]
[337804857,1726126275315,-150.112233,0.000184,2]
[337804858,1726126275324,-150.112233,0.000186,2]
[337804859,1726126275333,-150.0,0.00018619,2]
[337804860,1726126275343,-151.0,0.0001863,2]
[337804861,1726126275352,-151.0,0.0001863,2]
[337804862,1726126275362,-151.0,0.0001863,2]
[337804863,1726126275372,-500.0,0.0001863,2]
[337804864,1726126275382,-500.0,0.0001863,2]
[337804865,1726126275392,-346.62957906,0.0001863,2]
[337804866,1726126275401,-500.0,0.0001863,2]
[337804867,1726126275411,-500.0,0.0001863,2]
[337804868,1726126275421,-500.0,0.0001863,2]
[337804869,1726126275431,-556.11,0.0001863,2]
[337804870,1726126275440,-500.0,0.0001863,2]
[337804871,1726126275450,-572.83,0.0001863,2]
[337804872,1726126275459,-687.88,0.0001863,2]
[337804873,1726126275469,-500.0,0.0001863,2]
[337804874,1726126275478,-405.62885529,0.0001863,2]
[337804875,1726126275488,-500.0,0.0001863,2]
[337804876,1726126275499,-543.0,0.0001863,2]
[337804877,1726126275508,-500.0,0.0001863,2]
[337804878,1726126275519,-500.0,0.0001863,2]
[337804879,1726126275529,-615.59713829,0.0001863,2]
[337804880,1726126275539,-500.0,0.0001863,2]